fUST/lending_fUST_20260208
["ID","MTS","AMOUNT","RATE_DAILY","PERIOD"]
[404784551,1770551446607,-2285.98748756,0.00043261,15]
[404784552,1770551446616,-151.0,0.00043361,120]
[404784553,1770551446626,-151.0,0.00043361,120]
[404784554,1770551446635,-151.0,0.00043361,120]
[404784555,1770551446644,-377.275809,0.00043361,7]
[404784556,1770551446653,-377.275809,0.00043361,7]
[404784557,1770551446662,-377.275809,0.00043361,7]
[404784558,1770551446671,-647.4178958,0.00043963,2]
[404784559,1770551446681,-377.275809,0.0004499,7]
[404784560,1770551446691,-377.275809,0.0004499,7]
[404784561,1770551446699,-377.275809,0.0004499,7]
[404784562,1770551446708,-151.0,0.0004499,7]
[404784563,1770551446717,-547.775274,0.0004499,120]
[404784564,1770551446726,-547.775274,0.0004499,120]
[404784565,1770551446735,-547.775274,0.0004499,120]
[404784566,1770551446744,-547.775271,0.0004499,120]
[404784567,1770551446753,-847.01,0.00044999,2]
[404784568,1770551446762,-6000.0,0.00045,2]
[404784569,1770551446771,-151.0,0.00045,120]
[404784570,1770551446780,-151.0,0.00045,120]
[404784571,1770551446789,-151.0,0.00045,120]
[404784572,1770551446797,-54308.0,0.00045,120]
[404784573,1770551446806,-312.2,0.00045,30]
[404784574,1770551446815,-377.275809,0.00045,7]
[404784575,1770551446824,-377.275809,0.00045,7]
[404784576,1770551446833,-377.27581,0.00045,7]
[404784577,1770551446842,-3807.06,0.00045,2]
[404784578,1770551446850,-171.0,0.00045308,90]
[404784579,1770551446859,-220.56957717,0.00046277,2]
[404784580,1770551446868,-632.0,0.00047851,2]
[404784581,1770551446876,-2160.0,0.00047851,2]
[404784582,1770551446886,-1373.0,0.00047851,2]
[404784583,1770551446895,-223.174,0.00047932,2]
[404784584,1770551446905,-847.01,0.00048717,2]
[404784585,1770551446914,-151.0,0.0004899,120]
[404784586,1770551446923,-151.0,0.0004899,120]
[404784587,1770551446931,-241.590428,0.0004899,120]
[404784588,1770551446940,-847.01,0.00048999,2]
[404784589,1770551446950,-847.01,0.00048999,2]
[404784590,1770551446959,-847.01,0.00048999,2]
[404784591,1770551446968,-740.10334047,0.00049,7]
[404784592,1770551446977,-151.0,0.00049315,120]
[404784593,1770551446986,-151.0,0.00049315,120]
[404784594,1770551446994,-151.0,0.00049315,120]
[404784595,1770551447003,-151.0,0.00049315,120]
[404784596,1770551447012,-151.0,0.00049315,120]
[404784597,1770551447021,-151.0,0.00049315,120]
[404784598,1770551447030,-151.0,0.00049315,120]
[404784599,1770551447039,-151.0,0.00049315,120]
[404784600,1770551447048,-151.0,0.00049315,120]
[404784601,1770551447059,-151.0,0.00049315,120]
[404784602,1770551447067,-151.0,0.00049315,120]
[404784603,1770551447076,-151.0,0.00049315,120]
[404784604,1770551447085,-187.300489,0.00049315,120]
[404784605,1770551447094,-847.01,0.00049988,2]
[404784606,1770551447103,-847.01,0.00049989,2]
[404784607,1770551447112,-847.01,0.00049989,2]
[404784608,1770551447122,-847.01,0.00049989,2]
[404784609,1770551447131,-211.75599984,0.0004999,4]
[404784610,1770551447140,-847.01,0.00049999,2]
[404784611,1770551447149,-847.01,0.00049999,2]
[404784612,1770551447160,-847.01,0.00049999,2]
[404784613,1770551447168,-847.01,0.00049999,2]
[404784614,1770551447177,-847.01,0.00049999,2]
[404784615,1770551447187,-847.01,0.00049999,2]
[404784616,1770551447196,-847.01,0.00049999,2]
[404784617,1770551447205,-847.2016457,0.00049999,2]
[404784618,1770551447215,-6301.03740942,0.0005,120]
[404784619,1770551447224,-224141.18270008,0.0005,2]
[404784620,1770551447233,-168.34,0.0005,14]
[404784621,1770551447244,-156.12,0.0005,14]
[404784622,1770551447254,-1250.29,0.0005,120]
[404784623,1770551447263,-423.51199968,0.0005,4]
[404784624,1770551447272,-372134.0952753,0.0005001,120]
[404784625,1770551449270,5000.0,0.000375,2]
[404784626,1770551456274,289.2277454,0.0003353,2]
[404784627,1770551457663,3506.20810096,0.000375,2]
[404784628,1770551472587,399.17539322,0.00030137,120]
[404784654,1770551564767,-300.0,0.00026848,2]
[404784655,1770551564792,-4300.82460678,0.00026849,2]
[404784665,1770551772273,-5000.0,0.00024703,2]
[404784666,1770551772296,-150.0,0.00024828,2]
[404784667,1770551772318,-300.0,0.00024952,2]
[404784668,1770551772339,-1890.38542121,0.00024953,2]
[404784669,1770551772362,-5021.89991971,0.00024953,2]
[404784670,1770551772386,-177.0,0.00026828,2]
[404784671,1770551772408,-204.0,0.00028828,2]
[404784672,1770551780364,3274.97107602,0.00030724,2]
[404784673,1770551791508,66.26525377,0.00030823,2]
[404784674,1770551820688,-4933.73474623,0.00030823,2]
[404784675,1770551820710,-1539.13056623,0.00030824,2]
[404784676,1770551820732,-500.0,0.00030824,2]
[404784677,1770551820754,-500.0,0.00030824,2]
[404784678,1770551820776,-500.0,0.00030824,2]
[404784679,1770551820799,-500.0,0.00030824,2]
[404784680,1770551820819,-500.0,0.00030824,2]
[404784681,1770551820840,-162.09869476,0.00030824,2]
[404784682,1770551820862,-475.46138138,0.00030824,2]
[404784683,1770551820884,-500.0,0.00030824,2]
[404784684,1770551820906,-500.0,0.00030824,2]
[404784685,1770551820928,-500.0,0.00030824,2]
[404784686,1770551820951,-500.0,0.00030824,2]
[404784687,1770551820975,-500.0,0.00030824,2]
[404784688,1770551820995,-514.76114527,0.00030824,2]
[404784689,1770551821020,-574.57654697,0.00030824,2]
[404784690,1770551821042,-488.77332054,0.00030824,2]
[404784691,1770551821064,-500.0,0.00030824,2]
[404784692,1770551821086,-500.0,0.00030824,2]
[404784693,1770551821108,-500.0,0.00030824,2]
[404784694,1770551821130,-500.0,0.00030824,2]
[404784695,1770551821152,-395.98526933,0.00030824,2]
[404784716,1770551877503,-5000.0,0.00024953,2]
[404784717,1770551877527,-500.0,0.00029805,7]
[404784718,1770551877552,-104.01473067,0.00030824,2]
[404784719,1770551877574,-500.0,0.00030824,2]
[404784720,1770551877597,-369.42115657,0.00030824,2]
[404784721,1770551877619,-264.12837743,0.00030824,2]
[404784722,1770551877642,-500.0,0.00030824,2]
[404784723,1770551877663,-500.0,0.00030824,2]
[404784724,1770551877688,-500.0,0.00030824,2]
[404784725,1770551877709,-500.0,0.00030824,2]
[404784726,1770551877730,-500.0,0.00030824,2]
[404784727,1770551877752,-500.0,0.00030824,2]
[404784728,1770551877774,-500.0,0.00030824,2]
[404784729,1770551877796,-500.0,0.00030824,2]
[404784730,1770551877819,-500.0,0.00030824,2]
[404784731,1770551877841,-500.0,0.00030824,2]
[404784732,1770551877862,-1060.11,0.00030824,2]
[404784733,1770551877882,-3286.84740604,0.00030825,2]
[404784734,1770551904992,-2015.03276561,0.00024953,2]
[404784735,1770551905016,-14069.4889051,0.00030825,2]
[404784736,1770551927435,-5000.0,0.00024953,2]
[404784737,1770551944084,-4738.42454452,0.00026849,2]
[404784738,1770551944110,-858.22100707,0.00030825,2]
[404784790,1770552152934,-150.0,0.0002589,2]
[404784791,1770552152958,-4656.83744963,0.00026849,2]
[404784792,1770552152980,-1015.94,0.00030822,2]
[404784793,1770552153001,-400.0,0.00030823,2]
[404784794,1770552153024,-1015.94,0.00030824,2]
[404784801,1770552259426,-400.0,0.00031438,3]
[404784802,1770552259450,-300.0,0.00031439,30]
[404784803,1770552259472,-300.0,0.00031439,30]
[404784804,1770552259496,-300.0,0.00031439,30]
[404784805,1770552259520,-300.0,0.00031439,30]
[404784806,1770552259543,-300.0,0.00031439,30]
[404784807,1770552259566,-300.0,0.00031439,30]
[404784808,1770552259589,-300.0,0.00031439,30]
[404784809,1770552259614,-300.0,0.00031439,30]
[404784810,1770552259638,-300.0,0.00031439,30]
[404784811,1770552259662,-300.0,0.00031439,30]
[404784812,1770552259686,-300.0,0.00031439,30]
[404784813,1770552259710,-300.0,0.00031439,30]
[404784814,1770552259735,-300.0,0.00031439,30]
[404784815,1770552259760,-300.0,0.00031439,30]
[404784816,1770552259782,-300.0,0.00031439,30]
[404784829,1770552403659,345.13264542,0.00021918,2]
[404784872,1770552632109,-572.62277611,0.00026849,2]
[404784879,1770552638356,-4142.91907482,0.00026849,2]
[404784880,1770552638365,-1200.0,0.00032272,3]
[404784881,1770552638374,-9283.3914574,0.000357,2]
[404784882,1770552638383,-500.0,0.00037079,30]
[404784883,1770552638392,-300.0,0.00037523,3]
[404784884,1770552638401,-300.0,0.00037523,3]
[404784885,1770552638409,-300.0,0.00037523,3]
[404784886,1770552638419,-1522.48562687,0.00037603,2]
[404784887,1770552638428,-300.0,0.00037628,30]
[404784888,1770552638437,-300.0,0.00037628,30]
[404784889,1770552638446,-300.0,0.00037628,30]
[404784890,1770552638455,-300.0,0.00037628,30]
[404784891,1770552638464,-300.0,0.00037628,30]
[404784892,1770552638473,-300.0,0.00037628,30]
[404784893,1770552638481,-300.0,0.00037628,30]
[404784894,1770552638490,-300.0,0.00037628,30]
[404784895,1770552638499,-300.0,0.00037628,30]
[404784896,1770552638508,-300.0,0.00037628,30]
[404784897,1770552638516,-300.0,0.00037628,30]
[404784898,1770552638525,-300.0,0.00037628,30]
[404784899,1770552638534,-300.0,0.00037628,30]
[404784900,1770552638543,-300.0,0.00037628,30]
[404784901,1770552638552,-300.0,0.00037628,30]
[404784902,1770552638561,-220.56957717,0.00037693,2]
[404784903,1770552638570,-500.0,0.0003878,30]
[404784904,1770552638578,-314.0,0.00038783,30]
[404784905,1770552638587,-167.093951,0.00039479,2]
[404784906,1770552638596,-2956.86368609,0.00039567,2]
[404784907,1770552638605,-2133.58832176,0.00039668,12]
[404784908,1770552638613,-86144.98,0.00039764,2]
[404784909,1770552638623,-500.0,0.00039768,2]
[404784910,1770552638632,-500.0,0.00039768,2]
[404784911,1770552638641,-500.0,0.00039768,2]
[404784912,1770552638650,-500.0,0.00039768,2]
[404784913,1770552638659,-931.27,0.00039768,2]
[404784914,1770552638668,-931.27,0.00039768,2]
[404784915,1770552638677,-931.27,0.00039768,2]
[404784916,1770552638686,-931.27,0.00039768,2]
[404784917,1770552638695,-500.0,0.00040485,2]
[404784918,1770552638704,-931.27,0.00040485,2]
[404784919,1770552638713,-455.03026791,0.00040486,2]
[404784920,1770552638722,-819.05448224,0.00040486,2]
[404784921,1770552638731,-1456.09685732,0.00040486,2]
[404784922,1770552638740,-2275.15133957,0.00040486,2]
[404784923,1770552638750,-518.23594476,0.00040486,2]
[404784924,1770552638759,-932.82470057,0.00040486,2]
[404784925,1770552638768,-471.61436379,0.00040486,2]
[404784926,1770552638777,-848.90585482,0.00040486,2]
[404784927,1770552638786,-1509.16596413,0.00040486,2]
[404784928,1770552638795,-600.0,0.00040559,60]
[404784929,1770552638803,-808.49176562,0.00040816,2]
[404784930,1770552638812,-167.093951,0.00041141,2]
[404784931,1770552638821,-2031.28726031,0.00041738,2]
[404784932,1770552638830,-2358.07181895,0.00042042,2]
[404784933,1770552638839,-295.41792097,0.00042135,120]
[404784934,1770552638848,-1658.35502323,0.00042303,2]
[404784935,1770552638861,-167.093951,0.00042803,2]
[404784936,1770552638870,-460.61456117,0.00042986,2]
[404784937,1770552638880,-4715.54185093,0.00043165,2]
[404784938,1770552638889,-167.093951,0.00044465,2]
[404784939,1770552638899,-509.4069,0.00044465,2]
[404784940,1770552638908,-346.9031,0.00044465,3]
[404784941,1770552638917,-720.0,0.00044615,60]
[404784942,1770552638928,-500.0,0.00044987,2]
[404784943,1770552638937,-931.27,0.00044987,2]
[404784944,1770552638946,-168.0,0.00045212,2]
[404784945,1770552638955,-168.0,0.00045821,2]
[404784946,1770552638964,-167.093951,0.00046127,2]
[404784947,1770552638973,-164.0,0.00046629,30]
[404784948,1770552638983,-720.0,0.00046844,2]
[404784949,1770552638992,-180.0,0.00046844,2]
[404784950,1770552639000,-168.0,0.00047,90]
[404784951,1770552639009,-167.093951,0.00047789,2]
[404784952,1770552639018,-3866.3219388,0.00048872,2]
[404784953,1770552639027,-168.0,0.00048904,90]
[404784954,1770552639036,-2160.0,0.00048967,2]
[404784955,1770552639044,-632.0,0.00048967,2]
[404784956,1770552639054,-168.0,0.00049052,2]
[404784957,1770552639066,-864.0,0.00049076,120]
[404784958,1770552639076,-5000.0,0.000496,10]
[404784959,1770552639085,-500.0,0.0004978,2]
[404784960,1770552639094,-931.27,0.0004978,2]
[404784961,1770552639103,-11067.151482,0.00049781,2]
[404784962,1770552639111,-720.0,0.00049844,2]
[404784963,1770552639120,-180.0,0.00049844,2]
[404784964,1770552639129,-5000.0,0.00049985,10]
[404784965,1770552639137,-164.257978,0.0004999,30]
[404784966,1770552639147,-213.356841,0.0004999,120]
[404784967,1770552639155,-213.356841,0.0004999,120]
[404784968,1770552639164,-213.356841,0.0004999,120]
[404784969,1770552639173,-213.356841,0.0004999,120]
[404784970,1770552639182,-151.0,0.0004999,120]
[404784971,1770552639192,-244.20064,0.0004999,120]
[404784972,1770552639201,-151.0,0.0004999,7]
[404784973,1770552639210,-151.0,0.0004999,7]
[404784974,1770552639219,-151.0,0.0004999,120]
[404784975,1770552639227,-151.0,0.0004999,120]
[404784976,1770552639236,-152.081226,0.0004999,30]
[404784977,1770552639245,-500.0,0.00049996,2]
[404784978,1770552639253,-931.27,0.00049996,2]
[404784979,1770552639263,-301.25888777,0.00049997,4]
[404784980,1770552639271,-2353.09534781,0.00049997,4]
[404784981,1770552639280,-292.65088645,0.00049997,4]
[404784982,1770552639289,-1169.43294226,0.00049997,4]
[404784983,1770552639298,-488.25957663,0.00049997,4]
[404784984,1770552639306,-1951.08526822,0.00049997,4]
[404784985,1770552639315,-5000.0,0.0005,7]
[404784986,1770552639324,-500.0,0.0005,2]
[404784987,1770552639333,-931.27,0.0005,2]
[404784988,1770552639342,-151.0,0.00050001,7]
[404784989,1770552639351,-151.0,0.00050001,7]
[404784990,1770552639360,-151.0,0.00050001,120]
[404784991,1770552639369,-151.0,0.00050001,120]
[404784992,1770552639378,-500.0,0.00050008,2]
[404784993,1770552639387,-500.0,0.00050008,2]
[404784994,1770552639396,-931.27,0.00050008,2]
[404784995,1770552639404,-931.27,0.00050008,2]
[404784996,1770552639413,-151.0,0.00050009,120]
[404784997,1770552639422,-243.83420606,0.00050009,120]
[404784998,1770552639431,-500.0,0.00050009,2]
[404784999,1770552639440,-500.0,0.00050009,2]
[404785000,1770552639449,-931.27,0.00050009,2]
[404785001,1770552639458,-931.27,0.00050009,2]
[404785002,1770552639467,-250.0,0.00050009,120]
[404785003,1770552639475,-250.0,0.00050009,120]
[404785004,1770552639484,-250.0,0.00050009,120]
[404785005,1770552639493,-250.0,0.00050009,120]
[404785006,1770552639501,-250.0,0.00050009,120]
[404785007,1770552639510,-250.0,0.00050009,120]
[404785008,1770552639519,-250.0,0.00050009,120]
[404785009,1770552639528,-250.0,0.00050009,120]
[404785010,1770552639537,-250.0,0.00050009,120]
[404785011,1770552639546,-250.0,0.00050009,120]
[404785012,1770552639555,-250.0,0.00050009,120]
[404785013,1770552639564,-250.0,0.00050009,120]
[404785014,1770552639573,-250.0,0.00050009,120]
[404785015,1770552639582,-250.0,0.00050009,120]
[404785016,1770552639591,-250.0,0.00050009,120]
[404785017,1770552639600,-250.0,0.00050009,120]
[404785018,1770552639608,-250.0,0.00050009,120]
[404785019,1770552639617,-250.0,0.00050009,120]
[404785020,1770552639626,-250.0,0.00050009,120]
[404785021,1770552639635,-250.0,0.00050009,120]
[404785022,1770552639645,-250.0,0.00050009,120]
[404785023,1770552639654,-250.0,0.00050009,120]
[404785024,1770552639663,-250.0,0.00050009,120]
[404785025,1770552639672,-250.0,0.00050009,120]
[404785026,1770552639681,-250.0,0.00050009,120]
[404785027,1770552639690,-250.0,0.00050009,120]
[404785028,1770552639698,-250.0,0.00050009,120]
[404785029,1770552639707,-250.0,0.00050009,120]
[404785030,1770552639716,-250.0,0.00050009,120]
[404785031,1770552639725,-250.0,0.00050009,120]
[404785032,1770552639733,-250.0,0.00050009,120]
[404785033,1770552639743,-250.0,0.00050009,120]
[404785034,1770552639752,-250.0,0.00050009,120]
[404785035,1770552639761,-250.0,0.00050009,120]
[404785036,1770552639770,-250.0,0.00050009,120]
[404785037,1770552639779,-250.0,0.00050009,120]
[404785038,1770552639788,-319.60283604,0.00050009,120]
[404785039,1770552639796,-250.0,0.00050009,120]
[404785040,1770552639806,-250.0,0.00050009,120]
[404785041,1770552639815,-250.0,0.00050009,120]
[404785042,1770552639824,-1000.0,0.00050009,120]
[404785043,1770552639832,-250.0,0.00050009,120]
[404785044,1770552639841,-250.0,0.00050009,120]
[404785045,1770552639850,-250.0,0.00050009,120]
[404785046,1770552639864,-250.0,0.00050009,120]
[404785047,1770552639873,-1000.0,0.00050009,120]
[404785048,1770552639882,-250.0,0.00050009,120]
[404785049,1770552639890,-250.0,0.00050009,120]
[404785050,1770552639900,-250.0,0.00050009,120]
[404785051,1770552639910,-250.0,0.00050009,120]
[404785052,1770552639919,-1000.0,0.00050009,120]
[404785053,1770552639931,-250.0,0.00050009,120]
[404785054,1770552639939,-250.0,0.00050009,120]
[404785055,1770552639948,-250.0,0.00050009,120]
[404785056,1770552639958,-250.0,0.00050009,120]
[404785057,1770552639967,-1000.0,0.00050009,120]
[404785058,1770552639976,-250.0,0.00050009,120]
[404785059,1770552639985,-250.0,0.00050009,120]
[404785060,1770552639994,-250.0,0.00050009,120]
[404785061,1770552640003,-250.0,0.00050009,120]
[404785062,1770552640011,-1000.0,0.00050009,120]
[404785063,1770552640020,-250.0,0.00050009,120]
[404785064,1770552640029,-250.0,0.00050009,120]
[404785066,1770552640039,-250.0,0.00050009,120]
[404785067,1770552640048,-250.0,0.00050009,120]
[404785068,1770552640057,-1000.0,0.00050009,120]
[404785069,1770552640066,-250.0,0.00050009,120]
[404785070,1770552640075,-250.0,0.00050009,120]
[404785071,1770552640084,-250.0,0.00050009,120]
[404785072,1770552640093,-1000.0,0.00050009,120]
[404785073,1770552640102,-250.0,0.00050009,120]
[404785074,1770552640111,-250.0,0.00050009,120]
[404785075,1770552640120,-250.0,0.00050009,120]
[404785077,1770552640128,-1000.0,0.00050009,120]
[404785079,1770552640138,-250.0,0.00050009,120]
[404785081,1770552640146,-250.0,0.00050009,120]
[404785082,1770552640155,-250.0,0.00050009,120]
[404785083,1770552640164,-250.0,0.00050009,120]
[404785084,1770552640173,-1000.0,0.00050009,120]
[404785085,1770552640181,-250.0,0.00050009,120]
[404785086,1770552640190,-250.0,0.00050009,120]
[404785087,1770552640200,-250.0,0.00050009,120]
[404785088,1770552640209,-250.0,0.00050009,120]
[404785089,1770552640218,-1000.0,0.00050009,120]
[404785090,1770552640227,-250.0,0.00050009,120]
[404785091,1770552640235,-250.0,0.00050009,120]
[404785092,1770552640244,-250.0,0.00050009,120]
[404785093,1770552640253,-250.0,0.00050009,120]
[404785094,1770552640262,-1000.0,0.00050009,120]
[404785095,1770552640271,-250.0,0.00050009,120]
[404785096,1770552640280,-250.0,0.00050009,120]
[404785097,1770552640289,-250.0,0.00050009,120]
[404785098,1770552640298,-1000.0,0.00050009,120]
[404785099,1770552640307,-250.0,0.00050009,120]
[404785100,1770552640316,-250.0,0.00050009,120]
[404785101,1770552640325,-1000.0,0.00050009,120]
[404785102,1770552640334,-250.0,0.00050009,120]
[404785103,1770552640343,-1000.0,0.00050009,120]
[404785104,1770552640352,-250.0,0.00050009,120]
[404785105,1770552640361,-250.0,0.00050009,120]
[404785106,1770552640370,-1000.0,0.00050009,120]
[404785107,1770552640379,-250.0,0.00050009,120]
[404785108,1770552640388,-250.0,0.00050009,120]
[404785109,1770552640397,-1000.0,0.00050009,120]
[404785110,1770552640406,-250.0,0.00050009,120]
[404785111,1770552640415,-1000.0,0.00050009,120]
[404785112,1770552640426,-250.0,0.00050009,120]
[404785113,1770552640436,-500.0,0.00050009,120]
[404785114,1770552640445,-250.0,0.00050009,120]
[404785115,1770552640454,-1000.0,0.00050009,120]
[404785117,1770552640463,-250.0,0.00050009,120]
[404785119,1770552640472,-500.0,0.00050009,120]
[404785120,1770552640481,-1000.0,0.00050009,120]
[404785122,1770552640493,-250.0,0.00050009,120]
[404785124,1770552640502,-500.0,0.00050009,120]
[404785126,1770552640511,-1000.0,0.00050009,120]
[404785127,1770552640520,-250.0,0.00050009,120]
[404785128,1770552640529,-500.0,0.00050009,120]
[404785129,1770552640538,-500.0,0.00050009,120]
[404785130,1770552640547,-500.0,0.00050009,120]
[404785131,1770552640556,-419.17815113,0.00050009,120]
[404785132,1770552640565,-151.0,0.00050009,120]
[404785133,1770552640574,-250.0,0.00050009,120]
[404785134,1770552640583,-156.587,0.00050009,120]
[404785135,1770552640592,-250.0,0.00050009,120]
[404785136,1770552640602,-250.0,0.00050009,120]
[404785137,1770552640611,-162.380719,0.00050009,120]
[404785138,1770552640620,-250.0,0.00050009,120]
[404785139,1770552640629,-168.3888056,0.00050009,120]
[404785140,1770552640750,-250.0,0.00050009,120]
[404785141,1770552640759,-174.61919141,0.00050009,120]
[404785142,1770552640768,-250.0,0.00050009,120]
[404785143,1770552640777,-181.08010149,0.00050009,120]
[404785144,1770552640786,-250.0,0.00050009,120]
[404785145,1770552640795,-187.78006525,0.00050009,120]
[404785146,1770552640804,-250.0,0.00050009,120]
[404785147,1770552640813,-194.72792766,0.00050009,120]
[404785148,1770552640822,-250.0,0.00050009,120]
[404785149,1770552640831,-201.93286099,0.00050009,120]
[404785150,1770552640841,-250.0,0.00050009,120]
[404785151,1770552640850,-209.40437684,0.00050009,120]
[404785152,1770552640864,-250.0,0.00050009,120]
[404785153,1770552640872,-217.15233878,0.00050009,120]
[404785154,1770552640881,-250.0,0.00050009,120]
[404785155,1770552640890,-225.18697532,0.00050009,120]
[404785156,1770552640899,-250.0,0.00050009,120]
[404785157,1770552640908,-233.51889341,0.00050009,120]
[404785158,1770552640918,-250.0,0.00050009,120]
[404785159,1770552640927,-316.81660547,0.00050009,120]
[404785160,1770552640936,-282.50669141,0.00050009,120]
[404785161,1770552640945,-49814.06071941,0.0005001,120]
[404785162,1770552640954,-151.0,0.0005001,120]
[404785163,1770552640963,-213.356841,0.0005001,120]
[404785164,1770552640972,-213.356841,0.0005001,120]
[404785165,1770552640980,-213.356841,0.0005001,120]
[404785166,1770552640989,-213.356841,0.0005001,120]
[404785167,1770552640998,-151.0,0.0005001,7]
[404785168,1770552641008,-151.0,0.0005001,7]
[404785169,1770552641017,-500.0,0.0005001,2]
[404785170,1770552641026,-200.49,0.0005001,2]
[404785171,1770552641035,-151.0,0.0005001,120]
[404785172,1770552641044,-151.0,0.0005001,120]
[404785173,1770552641053,-931.27,0.0005001,2]
[404785174,1770552641062,-931.27,0.0005001,2]
[404785175,1770552641070,-931.27,0.0005001,2]
[404785176,1770552641080,-931.27,0.0005001,2]
[404785177,1770552641088,-931.27,0.0005001,2]
[404785178,1770552641097,-931.27,0.0005001,2]
[404785179,1770552641106,-931.27,0.0005001,2]
[404785180,1770552641115,-931.27,0.0005001,2]
[404785181,1770552641123,-931.27,0.0005001,2]
[404785182,1770552641132,-931.27,0.0005001,2]
[404785183,1770552641141,-931.4958201,0.0005001,2]
[404785184,1770552641150,-151608.98552282,0.00050011,120]
[404785185,1770552641164,-83365.14573368,0.00050011,120]
[404785186,1770552642117,-126692.46819002,0.00050011,120]
[404785187,1770552642188,-3e-08,0.00050011,120]
[404785201,1770552647240,-282.22,0.0005,10]
[404785202,1770552647249,-250.0,0.00050009,120]
[404785203,1770552647259,-250.0,0.00050009,120]
[404785204,1770552647268,-151.0,0.00050009,7]
[404785205,1770552647277,-250.0,0.00050009,120]
[404785206,1770552647286,-250.0,0.00050009,120]
[404785207,1770552647295,-151.0,0.0005001,7]
[404785208,1770552647321,-1092.26009157,0.00050011,120]
[404785209,1770552647332,-3865.7863432,0.00050011,120]
[404785211,1770552678828,4654.86735458,0.00025,2]
[404785223,1770552930264,-345.15840623,0.0002475,2]
[404785251,1770553200166,-1000.0,0.00024953,2]
[404785252,1770553201498,-73.6212594,0.00024953,2]
[404785253,1770553223098,-1000.0,0.00026848,2]
[404785254,1770553225899,-200.0,0.00026848,2]
[404785255,1770553225921,-800.0,0.00026849,2]
[404785256,1770553232505,-1000.0,0.00026849,2]
[404785257,1770553233503,-1000.0,0.00026849,2]
[404785258,1770553234642,-1000.0,0.00026849,2]
[404785259,1770553235625,-1000.0,0.00026849,2]
[404785422,1770553321977,2568.3,0.00024,2]
[404785452,1770553631566,300.0,0.00013673,2]
[404785453,1770553631616,414.58196054,0.00014221,2]
[404785474,1770553700706,10000.01,0.00017,2]
[404785475,1770553700731,6717.11803946,0.00017,2]
[404785476,1770553700756,10000.0,0.00017,2]
[404785477,1770553700780,9166.92123645,0.00017,2]
[404785478,1770553702257,833.07876355,0.0002,20]
[404785479,1770553702280,614.05183042,0.0002,20]
[404785482,1770553713767,200.0,8e-05,7]
[404785492,1770553808229,500.0,0.00013273,2]
[404785493,1770553816983,500.0,0.00013273,2]
[404785494,1770553820854,500.0,0.00013273,2]
[404785495,1770553827676,500.0,0.00013273,2]
[404785496,1770553828536,500.0,0.00013273,2]
[404785576,1770553840776,-431.23264603,0.00024456,2]
[404785620,1770553846673,-418.76735397,0.00024456,2]
[404785621,1770553846682,-5254.88521389,0.00025,30]
[404785622,1770553846691,-300.0,0.00025204,2]
[404785623,1770553846700,-300.0,0.00025204,2]
[404785624,1770553846709,-5090.04194335,0.00025205,2]
[404785625,1770553846720,-1941.08047078,0.000255,2]
[404785626,1770553846729,-170.6045,0.00025542,2]